[Event "Titled Tuesday Blitz September 14 2021"]
[White "Gupta, Abhijeet"]
[Black "Nazaretyan, Tigran"]
[WhiteFideId "5010608"]
[BlackFideId "24162345"]
[WhiteElo "2549"]
[BlackElo "2212"]
[Result "1/2-1/2"]
[Round "03"]
[TimeControl "180+1"]
[Date "2021.09.15"]
[WhiteClock "0:00:08"]
[BlackClock "0:00:27"]

1. Nf3 {[%clk 0:02:43]}  Nf6 {[%clk 0:02:59]} 2. c4 {[%clk 0:02:43]}  d6 {[%clk 0:02:56]} 3. d4 {[%clk 0:02:43]}  Nbd7 {[%clk 0:02:55]} 4. Nc3 {[%clk 0:02:42]}  e5 {[%clk 0:02:55]} 5. Bg5 {[%clk 0:02:42]}  Be7 {[%clk 0:02:54]} 6. e3 {[%clk 0:02:43]}  h6 {[%clk 0:02:51]} 7. Bh4 {[%clk 0:02:42]}  c6 {[%clk 0:02:51]} 8. Qc2 {[%clk 0:02:42]}  Nh5 {[%clk 0:02:51]} 9. Bxe7 {[%clk 0:02:41]}  Qxe7 {[%clk 0:02:51]} 10. O-O-O {[%clk 0:02:41]}  Nhf6 {[%clk 0:02:49]} 11. Bd3 {[%clk 0:02:36]}  a6 {[%clk 0:02:44]} 12. h3 {[%clk 0:02:29]}  b5 {[%clk 0:02:44]} 13. Rhe1 {[%clk 0:02:25]}  O-O {[%clk 0:02:37]} 14. g4 {[%clk 0:02:24]}  bxc4 {[%clk 0:02:22]} 15. Bxc4 {[%clk 0:02:21]}  d5 {[%clk 0:02:21]} 16. dxe5 {[%clk 0:02:08]}  Nxe5 {[%clk 0:02:13]} 17. Nxe5 {[%clk 0:02:07]}  Qxe5 {[%clk 0:02:14]} 18. Bb3 {[%clk 0:02:08]}  Re8 {[%clk 0:02:03]} 19. f4 {[%clk 0:02:07]}  Qe7 {[%clk 0:01:54]} 20. e4 {[%clk 0:02:06]}  Nxe4 {[%clk 0:01:53]} 21. Nxe4 {[%clk 0:01:58]}  dxe4 {[%clk 0:01:53]} 22. f5 {[%clk 0:01:58]}  Bb7 {[%clk 0:01:47]} 23. Kb1 {[%clk 0:01:50]}  Rad8 {[%clk 0:01:44]} 24. Rxd8 {[%clk 0:01:44]}  Qxd8 {[%clk 0:01:40]} 25. Rxe4 {[%clk 0:01:41]}  c5 {[%clk 0:01:40]} 26. Rxe8+ {[%clk 0:01:24]}  Qxe8 {[%clk 0:01:40]} 27. Qd1 {[%clk 0:01:19]}  Qe4+ {[%clk 0:01:35]} 28. Bc2 {[%clk 0:01:19]}  Qe7 {[%clk 0:01:24]} 29. a3 {[%clk 0:01:18]}  Be4 {[%clk 0:01:17]} 30. Ka2 {[%clk 0:01:01]}  Bxc2 {[%clk 0:01:13]} 31. Qxc2 {[%clk 0:01:02]}  Qd6 {[%clk 0:01:06]} 32. Qe4 {[%clk 0:01:00]}  f6 {[%clk 0:01:05]} 33. Kb3 {[%clk 0:00:29]}  Kh7 {[%clk 0:01:04]} 34. Ka2 {[%clk 0:00:20]}  a5 {[%clk 0:01:03]} 35. h4 {[%clk 0:00:20]}  Qd1 {[%clk 0:00:55]} 36. h5 {[%clk 0:00:20]}  a4 {[%clk 0:00:54]} 37. Qc4 {[%clk 0:00:20]}  Kh8 {[%clk 0:00:50]} 38. Qxc5 {[%clk 0:00:19]}  Qxg4 {[%clk 0:00:49]} 39. Qc8+ {[%clk 0:00:17]}  Kh7 {[%clk 0:00:49]} 40. Qd7 {[%clk 0:00:16]}  Qxh5 {[%clk 0:00:47]} 41. Qxa4 {[%clk 0:00:17]}  Qxf5 {[%clk 0:00:47]} 42. Qc4 {[%clk 0:00:16]}  h5 {[%clk 0:00:46]} 43. a4 {[%clk 0:00:17]}  Qe5 {[%clk 0:00:40]} 44. Ka3 {[%clk 0:00:16]}  f5 {[%clk 0:00:40]} 45. b4 {[%clk 0:00:14]}  Qa1+ {[%clk 0:00:40]} 46. Kb3 {[%clk 0:00:14]}  Qb1+ {[%clk 0:00:40]} 47. Ka3 {[%clk 0:00:14]}  Qe4 {[%clk 0:00:36]} 48. Qf7 {[%clk 0:00:07]}  h4 {[%clk 0:00:34]} 49. Qh5+ {[%clk 0:00:07]}  Kg8 {[%clk 0:00:34]} 50. a5 {[%clk 0:00:07]}  Qe3+ {[%clk 0:00:32]} 51. Ka4 {[%clk 0:00:08]}  h3 {[%clk 0:00:32]} 52. a6 {[%clk 0:00:07]}  Qd3 {[%clk 0:00:31]} 53. b5 {[%clk 0:00:07]}  Qd4+ {[%clk 0:00:26]} 54. Ka5 {[%clk 0:00:07]}  Qd8+ {[%clk 0:00:27]} 55. Kb4 {[%clk 0:00:07]}  Qd4+ {[%clk 0:00:27]} 56. Ka5 {[%clk 0:00:06]}  Qd8+ {[%clk 0:00:27]} 57. b6 {[%clk 0:00:06]}  Qd5+ {[%clk 0:00:27]} 58. Kb4 {[%clk 0:00:06]}  Qd4+ {[%clk 0:00:27]} 59. Kb5 {[%clk 0:00:06]}  Qd5+ {[%clk 0:00:27]} 60. Kb4 {[%clk 0:00:07]}  Qd4+ {[%clk 0:00:27]} 61. Kb5 {[%clk 0:00:07]}  Qd5+ {[%clk 0:00:27]} 62. Kb4 {[%clk 0:00:08]} 1/2-1/2


[Site "https://www.chess.com"]

[Event "Titled Tuesday Blitz September 14 2021"]
[White "Katz, Alexander"]
[Black "Keymer, Vincent"]
[WhiteFideId "2039796"]
[BlackFideId "12940690"]
[WhiteElo "2371"]
[BlackElo "2524"]
[Result "1-0"]
[Round "03"]
[TimeControl "180+1"]
[Date "2021.09.15"]
[WhiteClock "0:00:10"]
[BlackClock "0:00:01"]

1. Nf3 {[%clk 0:03:00]}  d5 {[%clk 0:02:59]} 2. c4 {[%clk 0:03:00]}  d4 {[%clk 0:02:58]} 3. b4 {[%clk 0:03:00]}  g5 {[%clk 0:02:57]} 4. Bb2 {[%clk 0:02:27]}  Bg7 {[%clk 0:02:38]} 5. e3 {[%clk 0:02:24]}  e5 {[%clk 0:02:33]} 6. exd4 {[%clk 0:02:15]}  exd4 {[%clk 0:02:33]} 7. Bd3 {[%clk 0:02:06]}  g4 {[%clk 0:01:56]} 8. Qe2+ {[%clk 0:02:04]}  Ne7 {[%clk 0:01:55]} 9. Ne5 {[%clk 0:01:47]}  Nbc6 {[%clk 0:01:38]} 10. Nxc6 {[%clk 0:01:36]}  bxc6 {[%clk 0:01:39]} 11. O-O {[%clk 0:01:35]}  O-O {[%clk 0:01:35]} 12. f3 {[%clk 0:01:33]}  f5 {[%clk 0:01:30]} 13. Na3 {[%clk 0:01:33]}  Rb8 {[%clk 0:01:19]} 14. Nc2 {[%clk 0:01:31]}  c5 {[%clk 0:01:20]} 15. Rae1 {[%clk 0:01:28]}  Ng6 {[%clk 0:01:19]} 16. fxg4 {[%clk 0:01:23]}  fxg4 {[%clk 0:01:19]} 17. Rxf8+ {[%clk 0:01:22]}  Qxf8 {[%clk 0:01:20]} 18. Rf1 {[%clk 0:01:19]}  Qd8 {[%clk 0:00:54]} 19. Ba3 {[%clk 0:01:13]}  Ne5 {[%clk 0:00:38]} 20. bxc5 {[%clk 0:01:08]}  Nxd3 {[%clk 0:00:27]} 21. Qxd3 {[%clk 0:01:09]}  Qd7 {[%clk 0:00:21]} 22. c6 {[%clk 0:00:58]}  Qxc6 {[%clk 0:00:21]} 23. Nxd4 {[%clk 0:00:56]}  Qd7 {[%clk 0:00:20]} 24. Bc5 {[%clk 0:00:56]}  Bb7 {[%clk 0:00:16]} 25. Qe3 {[%clk 0:00:37]}  Re8 {[%clk 0:00:16]} 26. Qf2 {[%clk 0:00:38]}  h5 {[%clk 0:00:11]} 27. Nf5 {[%clk 0:00:33]}  Be5 {[%clk 0:00:08]} 28. d4 {[%clk 0:00:24]}  Bh8 {[%clk 0:00:09]} 29. d5 {[%clk 0:00:19]}  Ba6 {[%clk 0:00:09]} 30. Bd4 {[%clk 0:00:18]}  Rf8 {[%clk 0:00:05]} 31. Nh6+ {[%clk 0:00:17]}  Kh7 {[%clk 0:00:04]} 32. Qxf8 {[%clk 0:00:15]}  Bxd4+ {[%clk 0:00:04]} 33. Kh1 {[%clk 0:00:16]}  Kg6 {[%clk 0:00:03]} 34. Nf5 {[%clk 0:00:11]}  Bxc4 {[%clk 0:00:01]} 35. Qg8+ {[%clk 0:00:10]}  Bg7 {[%clk 0:00:01]} 36. Nh4+ {[%clk 0:00:10]} 1-0


[Site "https://www.chess.com"]

[Event "Titled Tuesday Blitz September 14 2021"]
[White "Korchmar, Vasiliy"]
[Black "Yoo, Christopher Woojin"]
[WhiteFideId "24131750"]
[BlackFideId "30909694"]
[WhiteElo "2370"]
[BlackElo "2105"]
[Result "0-1"]
[Round "03"]
[TimeControl "180+1"]
[Date "2021.09.15"]
[WhiteClock "0:00:04"]
[BlackClock "0:00:08"]

1. e4 {[%clk 0:03:00]}  d5 {[%clk 0:02:53]} 2. exd5 {[%clk 0:03:00]}  Qxd5 {[%clk 0:02:53]} 3. Nc3 {[%clk 0:03:00]}  Qd6 {[%clk 0:02:53]} 4. d4 {[%clk 0:02:58]}  Nf6 {[%clk 0:02:53]} 5. Bc4 {[%clk 0:02:52]}  Bg4 {[%clk 0:02:44]} 6. Nf3 {[%clk 0:02:52]}  e6 {[%clk 0:02:32]} 7. h3 {[%clk 0:02:50]}  Bh5 {[%clk 0:02:32]} 8. g4 {[%clk 0:02:32]}  Bg6 {[%clk 0:02:26]} 9. Ne5 {[%clk 0:02:32]}  c6 {[%clk 0:02:13]} 10. Bf4 {[%clk 0:02:29]}  Qb4 {[%clk 0:02:09]} 11. Bb3 {[%clk 0:02:11]}  Nbd7 {[%clk 0:02:00]} 12. a3 {[%clk 0:01:51]}  Qa5 {[%clk 0:01:56]} 13. Nc4 {[%clk 0:01:48]}  Qd8 {[%clk 0:01:50]} 14. Qd2 {[%clk 0:01:27]}  Ne4 {[%clk 0:01:46]} 15. Nxe4 {[%clk 0:01:23]}  Bxe4 {[%clk 0:01:47]} 16. Rg1 {[%clk 0:01:23]}  Bd5 {[%clk 0:01:45]} 17. Qd3 {[%clk 0:01:13]}  Nf6 {[%clk 0:01:42]} 18. O-O-O {[%clk 0:01:10]}  Be7 {[%clk 0:01:40]} 19. h4 {[%clk 0:01:03]}  Ne4 {[%clk 0:01:29]} 20. Be3 {[%clk 0:00:55]}  Bxh4 {[%clk 0:01:27]} 21. f3 {[%clk 0:00:51]}  Nf2 {[%clk 0:01:25]} 22. Bxf2 {[%clk 0:00:50]}  Bxf2 {[%clk 0:01:26]} 23. Rgf1 {[%clk 0:00:49]}  Bh4 {[%clk 0:01:17]} 24. Kb1 {[%clk 0:00:50]}  h5 {[%clk 0:01:10]} 25. Ne3 {[%clk 0:00:40]}  hxg4 {[%clk 0:00:52]} 26. fxg4 {[%clk 0:00:35]}  Bxb3 {[%clk 0:00:48]} 27. Qxb3 {[%clk 0:00:35]}  Qc7 {[%clk 0:00:46]} 28. Nc4 {[%clk 0:00:20]}  O-O-O {[%clk 0:00:45]} 29. Ne5 {[%clk 0:00:21]}  Bf6 {[%clk 0:00:44]} 30. Nxf7 {[%clk 0:00:18]}  Qxf7 {[%clk 0:00:44]} 31. g5 {[%clk 0:00:19]}  Rh5 {[%clk 0:00:33]} 32. gxf6 {[%clk 0:00:19]}  gxf6 {[%clk 0:00:34]} 33. Rf3 {[%clk 0:00:19]}  Rhd5 {[%clk 0:00:32]} 34. Rdf1 {[%clk 0:00:18]}  f5 {[%clk 0:00:31]} 35. c3 {[%clk 0:00:18]}  Qg6 {[%clk 0:00:18]} 36. Ka1 {[%clk 0:00:18]}  Rh8 {[%clk 0:00:10]} 37. Re3 {[%clk 0:00:18]}  Rh4 {[%clk 0:00:10]} 38. Rfe1 {[%clk 0:00:18]}  Re4 {[%clk 0:00:08]} 39. Rxe4 {[%clk 0:00:17]}  fxe4 {[%clk 0:00:09]} 40. Qc2 {[%clk 0:00:18]}  e5 {[%clk 0:00:09]} 41. Qxe4 {[%clk 0:00:12]}  Qxe4 {[%clk 0:00:09]} 42. Rxe4 {[%clk 0:00:13]}  exd4 {[%clk 0:00:10]} 43. cxd4 {[%clk 0:00:14]}  Kd7 {[%clk 0:00:10]} 44. Kb1 {[%clk 0:00:14]}  Rh5 {[%clk 0:00:09]} 45. Kc2 {[%clk 0:00:14]}  Kd6 {[%clk 0:00:10]} 46. Rg4 {[%clk 0:00:12]}  Rh7 {[%clk 0:00:07]} 47. Rg5 {[%clk 0:00:12]}  Rf7 {[%clk 0:00:03]} 48. Kc3 {[%clk 0:00:13]}  Re7 {[%clk 0:00:04]} 49. b3 {[%clk 0:00:13]}  a6 {[%clk 0:00:03]} 50. a4 {[%clk 0:00:13]}  b6 {[%clk 0:00:03]} 51. Rh5 {[%clk 0:00:12]}  Re3+ {[%clk 0:00:02]} 52. Kc2 {[%clk 0:00:11]}  b5 {[%clk 0:00:02]} 53. axb5 {[%clk 0:00:11]}  axb5 {[%clk 0:00:03]} 54. Rg5 {[%clk 0:00:12]}  b4 {[%clk 0:00:03]} 55. Rh5 {[%clk 0:00:12]}  Rc3+ {[%clk 0:00:02]} 56. Kb2 {[%clk 0:00:12]}  Rd3 {[%clk 0:00:03]} 57. Rh4 {[%clk 0:00:07]}  Kd5 {[%clk 0:00:03]} 58. Rh5+ {[%clk 0:00:07]}  Kxd4 {[%clk 0:00:03]} 59. Rh4+ {[%clk 0:00:07]}  Kc5 {[%clk 0:00:03]} 60. Rh5+ {[%clk 0:00:07]}  Rd5 {[%clk 0:00:02]} 61. Rh4 {[%clk 0:00:06]}  Rd2+ {[%clk 0:00:02]} 62. Kc1 {[%clk 0:00:06]}  Re2 {[%clk 0:00:03]} 63. Rg4 {[%clk 0:00:05]}  Re3 {[%clk 0:00:02]} 64. Kc2 {[%clk 0:00:05]}  Re2+ {[%clk 0:00:03]} 65. Kc1 {[%clk 0:00:05]}  Rf2 {[%clk 0:00:02]} 66. Kb1 {[%clk 0:00:05]}  Kb5 {[%clk 0:00:03]} 67. Kc1 {[%clk 0:00:05]}  c5 {[%clk 0:00:03]} 68. Kb1 {[%clk 0:00:06]}  Kc6 {[%clk 0:00:03]} 69. Rg5 {[%clk 0:00:05]}  Rd2 {[%clk 0:00:02]} 70. Kc1 {[%clk 0:00:05]}  Rd5 {[%clk 0:00:03]} 71. Rg6+ {[%clk 0:00:05]}  Rd6 {[%clk 0:00:02]} 72. Rg5 {[%clk 0:00:05]}  Re6 {[%clk 0:00:03]} 73. Rh5 {[%clk 0:00:06]}  Kd6 {[%clk 0:00:03]} 74. Kc2 {[%clk 0:00:05]}  Re5 {[%clk 0:00:03]} 75. Rh6+ {[%clk 0:00:05]}  Kd5 {[%clk 0:00:04]} 76. Rh4 {[%clk 0:00:05]}  Re4 {[%clk 0:00:04]} 77. Rh8 {[%clk 0:00:04]}  Re2+ {[%clk 0:00:04]} 78. Kc1 {[%clk 0:00:03]}  Kd4 {[%clk 0:00:04]} 79. Rh3 {[%clk 0:00:02]}  Re3 {[%clk 0:00:04]} 80. Rh4+ {[%clk 0:00:02]}  Kc3 {[%clk 0:00:04]} 81. Rc4+ {[%clk 0:00:02]}  Kxb3 {[%clk 0:00:04]} 82. Rxc5 {[%clk 0:00:03]}  Rc3+ {[%clk 0:00:05]} 83. Rxc3+ {[%clk 0:00:02]}  Kxc3 {[%clk 0:00:05]} 84. Kb1 {[%clk 0:00:02]}  Kb3 {[%clk 0:00:06]} 85. Ka1 {[%clk 0:00:03]}  Kc2 {[%clk 0:00:06]} 86. Ka2 {[%clk 0:00:03]}  b3+ {[%clk 0:00:07]} 87. Ka1 {[%clk 0:00:04]}  b2+ {[%clk 0:00:08]} 0-1


[Site "https://www.chess.com"]

[Event "Titled Tuesday Blitz September 14 2021"]
[White "Petrovskyi, Vadym"]
[Black "Deac, Bogdan-Daniel"]
[WhiteFideId "14165210"]
[BlackFideId "1226380"]
[WhiteElo "2683"]
[BlackElo "2998"]
[Result "0-1"]
[Round "03"]
[TimeControl "180+1"]
[Date "2021.09.15"]
[WhiteClock "0:00:09"]
[BlackClock "0:00:03"]

1. e4 {[%clk 0:03:00]}  c5 {[%clk 0:02:58]} 2. Nf3 {[%clk 0:03:00]}  a6 {[%clk 0:02:57]} 3. c4 {[%clk 0:02:59]}  Nc6 {[%clk 0:02:55]} 4. Nc3 {[%clk 0:02:58]}  d6 {[%clk 0:02:29]} 5. d4 {[%clk 0:02:56]}  Bg4 {[%clk 0:02:29]} 6. dxc5 {[%clk 0:02:45]}  dxc5 {[%clk 0:02:27]} 7. Be3 {[%clk 0:02:45]}  e6 {[%clk 0:02:16]} 8. Qb3 {[%clk 0:02:30]}  Bxf3 {[%clk 0:02:11]} 9. gxf3 {[%clk 0:02:28]}  Rb8 {[%clk 0:02:02]} 10. Rd1 {[%clk 0:02:25]}  Qc7 {[%clk 0:01:59]} 11. f4 {[%clk 0:01:58]}  Nf6 {[%clk 0:01:32]} 12. Be2 {[%clk 0:01:55]}  Nd4 {[%clk 0:01:24]} 13. Qa4+ {[%clk 0:01:53]}  Nd7 {[%clk 0:01:23]} 14. e5 {[%clk 0:01:21]}  Rd8 {[%clk 0:01:08]} 15. O-O {[%clk 0:00:55]}  g5 {[%clk 0:00:44]} 16. Bxd4 {[%clk 0:00:40]}  cxd4 {[%clk 0:00:38]} 17. Ne4 {[%clk 0:00:41]}  gxf4 {[%clk 0:00:26]} 18. Rxd4 {[%clk 0:00:22]}  Be7 {[%clk 0:00:20]} 19. Rfd1 {[%clk 0:00:21]}  Rg8+ {[%clk 0:00:20]} 20. Kf1 {[%clk 0:00:21]}  Rg6 {[%clk 0:00:16]} 21. b4 {[%clk 0:00:16]}  Rh6 {[%clk 0:00:15]} 22. Kg1 {[%clk 0:00:15]}  Rg6+ {[%clk 0:00:11]} 23. Kh1 {[%clk 0:00:15]}  Rh6 {[%clk 0:00:11]} 24. Bf3 {[%clk 0:00:15]}  Rh3 {[%clk 0:00:08]} 25. Bg2 {[%clk 0:00:14]}  Rh4 {[%clk 0:00:07]} 26. c5 {[%clk 0:00:14]}  f3 {[%clk 0:00:05]} 27. Bxf3 {[%clk 0:00:14]}  Qxe5 {[%clk 0:00:03]} 28. Kg2 {[%clk 0:00:14]}  Qxh2+ {[%clk 0:00:02]} 29. Kf1 {[%clk 0:00:14]}  Qc7 {[%clk 0:00:02]} 30. Nd6+ {[%clk 0:00:10]}  Kf8 {[%clk 0:00:01]} 31. Rxh4 {[%clk 0:00:09]}  Bxh4 {[%clk 0:00:02]} 32. Nxb7 {[%clk 0:00:09]}  Qf4 {[%clk 0:00:03]} 33. Nxd8 {[%clk 0:00:08]}  Qxf3 {[%clk 0:00:03]} 34. Qxd7 {[%clk 0:00:09]}  Qxf2# {[%clk 0:00:03]} 0-1


[Site "https://www.chess.com"]

[Event "Titled Tuesday Blitz September 14 2021"]
[White "Sarana, Alexey"]
[Black "Maksimovic, Bojan"]
[WhiteFideId "24133795"]
[BlackFideId "14408120"]
[WhiteElo "2671"]
[BlackElo "2439"]
[Result "1-0"]
[Round "03"]
[TimeControl "180+1"]
[Date "2021.09.15"]
[WhiteClock "0:01:06"]
[BlackClock "0:00:02"]

1. e4 {[%clk 0:02:47]}  c6 {[%clk 0:02:55]} 2. Nf3 {[%clk 0:02:47]}  d5 {[%clk 0:02:54]} 3. d3 {[%clk 0:02:47]}  dxe4 {[%clk 0:02:51]} 4. dxe4 {[%clk 0:02:48]}  Qxd1+ {[%clk 0:02:50]} 5. Kxd1 {[%clk 0:02:49]}  Bg4 {[%clk 0:02:36]} 6. Be2 {[%clk 0:02:48]}  Bxf3 {[%clk 0:02:36]} 7. Bxf3 {[%clk 0:02:48]}  e5 {[%clk 0:02:36]} 8. Ke2 {[%clk 0:02:37]}  Nf6 {[%clk 0:02:32]} 9. Nd2 {[%clk 0:02:37]}  Nbd7 {[%clk 0:02:25]} 10. Nc4 {[%clk 0:02:36]}  O-O-O {[%clk 0:02:11]} 11. Rd1 {[%clk 0:02:36]}  h6 {[%clk 0:02:07]} 12. c3 {[%clk 0:02:33]}  Kc7 {[%clk 0:01:59]} 13. b4 {[%clk 0:02:30]}  Be7 {[%clk 0:01:36]} 14. Be3 {[%clk 0:02:29]}  b6 {[%clk 0:01:33]} 15. a4 {[%clk 0:02:30]}  Rhe8 {[%clk 0:01:26]} 16. g3 {[%clk 0:02:26]}  Bf8 {[%clk 0:01:23]} 17. h4 {[%clk 0:02:26]}  Kb7 {[%clk 0:01:03]} 18. a5 {[%clk 0:02:18]}  b5 {[%clk 0:00:53]} 19. a6+ {[%clk 0:02:18]}  Kc7 {[%clk 0:00:52]} 20. Na5 {[%clk 0:02:18]}  Nb6 {[%clk 0:00:51]} 21. Nb7 {[%clk 0:02:15]}  Rxd1 {[%clk 0:00:45]} 22. Rxd1 {[%clk 0:02:16]}  Be7 {[%clk 0:00:28]} 23. Ra1 {[%clk 0:01:57]}  Ra8 {[%clk 0:00:26]} 24. Na5 {[%clk 0:01:51]}  Nfd7 {[%clk 0:00:18]} 25. Bg4 {[%clk 0:01:48]}  c5 {[%clk 0:00:17]} 26. Rd1 {[%clk 0:01:28]}  cxb4 {[%clk 0:00:12]} 27. cxb4 {[%clk 0:01:29]}  Bxb4 {[%clk 0:00:07]} 28. Rc1+ {[%clk 0:01:29]}  Kd6 {[%clk 0:00:08]} 29. Rc6+ {[%clk 0:01:05]}  Ke7 {[%clk 0:00:08]} 30. Rxb6 {[%clk 0:01:04]}  Bxa5 {[%clk 0:00:04]} 31. Rb7 {[%clk 0:01:04]}  Rd8 {[%clk 0:00:02]} 32. Bxa7 {[%clk 0:01:04]}  h5 {[%clk 0:00:02]} 33. Bc5+ {[%clk 0:01:04]}  Ke8 {[%clk 0:00:02]} 34. Bxd7+ {[%clk 0:01:05]}  Rxd7 {[%clk 0:00:02]} 35. Rxd7 {[%clk 0:01:05]}  Kxd7 {[%clk 0:00:02]} 36. a7 {[%clk 0:01:06]} 1-0


[Site "https://www.chess.com"]

[Event "Titled Tuesday Blitz September 14 2021"]
[White "Srihari L R"]
[Black "Grischuk, Alexander"]
[WhiteFideId "46617116"]
[BlackFideId "4126025"]
[WhiteElo "2683"]
[BlackElo "3073"]
[Result "0-1"]
[Round "03"]
[TimeControl "180+1"]
[Date "2021.09.15"]
[WhiteClock "0:00:05"]
[BlackClock "0:00:33"]

1. Nf3 {[%clk 0:03:00]}  Nf6 {[%clk 0:02:59]} 2. c4 {[%clk 0:03:00]}  g6 {[%clk 0:02:59]} 3. b4 {[%clk 0:03:00]}  Bg7 {[%clk 0:02:58]} 4. Bb2 {[%clk 0:03:00]}  O-O {[%clk 0:02:59]} 5. e3 {[%clk 0:02:59]}  d6 {[%clk 0:02:59]} 6. Be2 {[%clk 0:02:59]}  e5 {[%clk 0:02:58]} 7. d4 {[%clk 0:02:59]}  e4 {[%clk 0:02:43]} 8. Nfd2 {[%clk 0:02:58]}  h5 {[%clk 0:02:41]} 9. Nc3 {[%clk 0:02:55]}  Re8 {[%clk 0:02:40]} 10. h3 {[%clk 0:02:47]}  h4 {[%clk 0:02:39]} 11. Qc2 {[%clk 0:02:41]}  Bf5 {[%clk 0:02:38]} 12. Nd5 {[%clk 0:02:22]}  Nxd5 {[%clk 0:02:26]} 13. cxd5 {[%clk 0:02:23]}  Nd7 {[%clk 0:02:21]} 14. Rc1 {[%clk 0:02:23]}  Qg5 {[%clk 0:02:09]} 15. Rg1 {[%clk 0:01:41]}  Rac8 {[%clk 0:02:01]} 16. g4 {[%clk 0:01:40]}  hxg3 {[%clk 0:01:58]} 17. Rxg3 {[%clk 0:01:40]}  Qh4 {[%clk 0:01:51]} 18. Bg4 {[%clk 0:01:39]}  Bxg4 {[%clk 0:01:38]} 19. Rxg4 {[%clk 0:01:09]}  Qxh3 {[%clk 0:01:38]} 20. Rxe4 {[%clk 0:01:08]}  Nf6 {[%clk 0:01:37]} 21. Rxe8+ {[%clk 0:01:06]}  Rxe8 {[%clk 0:01:38]} 22. Qb3 {[%clk 0:00:36]}  Ng4 {[%clk 0:01:26]} 23. Nf1 {[%clk 0:00:29]}  Bh6 {[%clk 0:01:15]} 24. Rc3 {[%clk 0:00:21]}  Bg5 {[%clk 0:01:09]} 25. Qa4 {[%clk 0:00:15]}  Re7 {[%clk 0:01:04]} 26. Qxa7 {[%clk 0:00:12]}  Qf3 {[%clk 0:00:46]} 27. Rc2 {[%clk 0:00:11]}  Nxf2 {[%clk 0:00:34]} 28. Qb8+ {[%clk 0:00:05]}  Kg7 {[%clk 0:00:33]} 29. Rxf2 {[%clk 0:00:05]}  Bh4 {[%clk 0:00:33]} 0-1


[Site "https://www.chess.com"]

[Event "Titled Tuesday Blitz September 14 2021"]
[White "Stribuk, Artiom"]
[Black "Jones, Gawain C B"]
[WhiteFideId "13515659"]
[BlackFideId "409561"]
[WhiteElo "2224"]
[BlackElo "2657"]
[Result "0-1"]
[Round "03"]
[TimeControl "180+1"]
[Date "2021.09.15"]
[WhiteClock "0:00:01"]
[BlackClock "0:00:04"]

1. d4 {[%clk 0:02:57]}  Nf6 {[%clk 0:02:59]} 2. c4 {[%clk 0:02:57]}  g6 {[%clk 0:02:58]} 3. Nf3 {[%clk 0:02:57]}  Bg7 {[%clk 0:02:58]} 4. g3 {[%clk 0:02:57]}  c5 {[%clk 0:02:56]} 5. d5 {[%clk 0:02:55]}  b5 {[%clk 0:02:55]} 6. cxb5 {[%clk 0:02:55]}  a6 {[%clk 0:02:55]} 7. bxa6 {[%clk 0:02:56]}  O-O {[%clk 0:02:54]} 8. Nc3 {[%clk 0:02:55]}  d6 {[%clk 0:02:54]} 9. Bg2 {[%clk 0:02:55]}  Nxa6 {[%clk 0:02:54]} 10. O-O {[%clk 0:02:52]}  Bf5 {[%clk 0:02:54]} 11. Nd2 {[%clk 0:02:52]}  Nb4 {[%clk 0:02:53]} 12. a3 {[%clk 0:02:20]}  Qd7 {[%clk 0:02:32]} 13. e4 {[%clk 0:02:12]}  Bg4 {[%clk 0:02:31]} 14. f3 {[%clk 0:02:09]}  Bh3 {[%clk 0:02:31]} 15. Nc4 {[%clk 0:02:07]}  Rfb8 {[%clk 0:02:23]} 16. Bd2 {[%clk 0:01:46]}  Bxg2 {[%clk 0:02:19]} 17. Kxg2 {[%clk 0:01:45]}  Na6 {[%clk 0:02:09]} 18. Qc2 {[%clk 0:01:44]}  Ne8 {[%clk 0:02:08]} 19. Rab1 {[%clk 0:01:27]}  Nec7 {[%clk 0:02:04]} 20. b3 {[%clk 0:01:27]}  Nb5 {[%clk 0:02:02]} 21. Nxb5 {[%clk 0:01:27]}  Rxb5 {[%clk 0:02:01]} 22. Bc3 {[%clk 0:01:27]}  Rab8 {[%clk 0:01:55]} 23. Bxg7 {[%clk 0:01:26]}  Kxg7 {[%clk 0:01:56]} 24. Qc3+ {[%clk 0:01:27]}  Kg8 {[%clk 0:01:55]} 25. Rfe1 {[%clk 0:01:21]}  Nc7 {[%clk 0:01:47]} 26. Qd3 {[%clk 0:01:13]}  e6 {[%clk 0:01:33]} 27. dxe6 {[%clk 0:01:07]}  Nxe6 {[%clk 0:01:33]} 28. Qxd6 {[%clk 0:00:56]}  Qxd6 {[%clk 0:01:31]} 29. Nxd6 {[%clk 0:00:56]}  Rxb3 {[%clk 0:01:31]} 30. Rxb3 {[%clk 0:00:57]}  Rxb3 {[%clk 0:01:31]} 31. Ra1 {[%clk 0:00:57]}  Nd4 {[%clk 0:01:26]} 32. a4 {[%clk 0:00:38]}  Rb2+ {[%clk 0:01:25]} 33. Kf1 {[%clk 0:00:24]}  Nxf3 {[%clk 0:01:15]} 34. a5 {[%clk 0:00:24]}  Nxh2+ {[%clk 0:01:14]} 35. Ke1 {[%clk 0:00:20]}  Nf3+ {[%clk 0:01:14]} 36. Kf1 {[%clk 0:00:21]}  Nd2+ {[%clk 0:01:00]} 37. Ke1 {[%clk 0:00:19]}  Nb3 {[%clk 0:00:31]} 38. Ra3 {[%clk 0:00:15]}  Nd4 {[%clk 0:00:31]} 39. a6 {[%clk 0:00:07]}  Nc2+ {[%clk 0:00:30]} 40. Kd1 {[%clk 0:00:06]}  Nxa3 {[%clk 0:00:24]} 41. a7 {[%clk 0:00:06]}  Rb1+ {[%clk 0:00:16]} 42. Ke2 {[%clk 0:00:06]}  Rb2+ {[%clk 0:00:15]} 43. Kf1 {[%clk 0:00:05]}  Nc2 {[%clk 0:00:10]} 44. a8=Q+ {[%clk 0:00:05]}  Kg7 {[%clk 0:00:11]} 45. Ke2 {[%clk 0:00:03]}  Nb4+ {[%clk 0:00:07]} 46. Ke3 {[%clk 0:00:02]}  Rb3+ {[%clk 0:00:06]} 47. Kf4 {[%clk 0:00:02]}  Nd3+ {[%clk 0:00:06]} 48. Ke3 {[%clk 0:00:02]}  Ne5+ {[%clk 0:00:04]} 49. Kd2 {[%clk 0:00:01]}  Rxg3 {[%clk 0:00:03]} 50. Kc2 {[%clk 0:00:02]}  Rg2+ {[%clk 0:00:03]} 51. Kd1 {[%clk 0:00:02]}  Ng4 {[%clk 0:00:02]} 52. Ne8+ {[%clk 0:00:03]}  Kh6 {[%clk 0:00:02]} 53. Ke1 {[%clk 0:00:03]}  Ne3 {[%clk 0:00:03]} 54. Qb8 {[%clk 0:00:02]}  Nc2+ {[%clk 0:00:03]} 55. Kd1 {[%clk 0:00:02]}  Ne3+ {[%clk 0:00:04]} 56. Kc1 {[%clk 0:00:03]}  Kg5 {[%clk 0:00:04]} 57. Qe5+ {[%clk 0:00:03]}  Kh4 {[%clk 0:00:04]} 58. Qf4+ {[%clk 0:00:03]}  Ng4 {[%clk 0:00:05]} 59. Nf6 {[%clk 0:00:03]}  g5 {[%clk 0:00:05]} 60. Qf5 {[%clk 0:00:02]}  Rg1+ {[%clk 0:00:05]} 61. Kb2 {[%clk 0:00:02]}  Rg2+ {[%clk 0:00:05]} 62. Ka3 {[%clk 0:00:02]}  h5 {[%clk 0:00:04]} 63. Nxg4 {[%clk 0:00:02]}  Rg3+ {[%clk 0:00:04]} 64. Kb2 {[%clk 0:00:02]}  Rxg4 {[%clk 0:00:05]} 65. e5 {[%clk 0:00:02]}  Rf4 {[%clk 0:00:05]} 66. Qc8 {[%clk 0:00:02]}  g4 {[%clk 0:00:05]} 67. Qxc5 {[%clk 0:00:02]}  g3 {[%clk 0:00:06]} 68. Qg1 {[%clk 0:00:01]}  Rf2+ {[%clk 0:00:05]} 69. Kc3 {[%clk 0:00:01]}  Kg4 {[%clk 0:00:05]} 70. Kd3 {[%clk 0:00:02]}  h4 {[%clk 0:00:05]} 71. Ke3 {[%clk 0:00:02]}  Rf3+ {[%clk 0:00:05]} 72. Ke4 {[%clk 0:00:02]}  Rf4+ {[%clk 0:00:06]} 73. Ke3 {[%clk 0:00:03]}  h3 {[%clk 0:00:06]} 74. Qd1+ {[%clk 0:00:03]}  Kg5 {[%clk 0:00:07]} 75. Qd8+ {[%clk 0:00:03]}  f6 {[%clk 0:00:05]} 76. exf6 {[%clk 0:00:02]}  Rxf6 {[%clk 0:00:04]} 77. Qg8+ {[%clk 0:00:01]}  Rg6 {[%clk 0:00:04]} 78. Qd5+ {[%clk 0:00:01]}  Kh6 {[%clk 0:00:04]} 0-1


[Site "https://www.chess.com"]